Cogmind - Beta 17 @@@ ROGUE MODE // 2026.08.06 @ 14:17:33 Player: NeoBioHazard Result: Destroyed by Y-64 Sentinel with KE Penetrator Performance ------------- Evolutions (6) 3000 Regions Visited (18) 3600 Robots Destroyed (287) 1435 Value Destroyed (12288) 12288 Prototype IDs (3) 60 Alien Tech Used (0) 0 Bonus (10137) 10137 TOTAL SCORE: 30520 Bonus ------- High Alert Combat Kills 4091 Follower Combat Kills 1800 Entered Garrisons 1200 Used RIF Installer 3500 Friendly Fire -454 Cogmind --------- Core Integrity 0/1150 Matter 153/300 Energy 100/100 System Corruption 1% Temperature Cool (0) Movement Core (50) Location -4/Extension Parts ------- > --- POWER (1) -------- (None) > --- PROPULSION (6) --- (None) > --- UTILITY (6) ------ (None) > --- WEAPON (6) ------- (None) > --- INVENTORY (5) ---- High-capacity Matter Pod (125) Peak State ------------ > --- POWER ------------ Antimatter Reactor > --- PROPULSION ------- Heavy Treads Heavy Treads > --- UTILITY ---------- Improved Cooling System Advanced Targeting Computer Improved Target Analyzer Kinecellerator Layered Medium Armor Plating Advanced Shield Generator > --- WEAPON ----------- Heavy Gauss Cannon Heavy Gauss Cannon Heavy Gauss Cannon Heavy Gauss Cannon Hypervelocity Mass Driver Hypervelocity Mass Driver > --- INVENTORY -------- High-capacity Matter Pod KE Penetrator Hypervelocity Mass Driver Hypervelocity Mass Driver [Rating: 102] Favorites ----------- Power Antimatter Reactor Engine Heavy Ion Engine Reactor Antimatter Reactor Propulsion Aluminum Leg Treads Heavy Treads Leg Aluminum Leg Wheel Compact Wheel Flight Unit Impulse Thruster Utility Advanced Targeting Computer Device Advanced Heat Sink Storage Medium Storage Unit Processor Advanced Targeting Computer Protection Improved Medium Armor Plating Weapon Gauss Rifle Energy Gun Shock Rifle Energy Cannon Heavy Plasma Cannon Ballistic Gun Gauss Rifle Ballistic Cannon Heavy Assault Cannon Launcher Mini Grenade Launcher Build | -11 -10 -9 -8 -8 -8 -8 -7 -7 -7 -7 -6 -6 -6 -6 -5 -5 -4 -4 ------- Run | Yrd Mat Mat Mat Gar Mat Gar Fac Gar Fac Gar Fac Was Fac Gar Fac Gar Fac Ext Slots Evolved 12 | . . 2 2 . . . 2 . . . 2 . . . 2 . 2 . Power . | . . . . . . . . . . . . . . . . . . . Propulsion 4 | . . . 2 . . . . . . . . . . . . . 2 . Utility 4 | . . 1 . . . . 1 . . . . . . . 2 . . . Weapon 4 | . . 1 . . . . 1 . . . 2 . . . . . . . Parts Attached 156 | 7 5 8 27 16 . 10 1 7 . 29 6 4 . 4 2 14 16 . Power 12 | 1 1 1 2 1 . . . 1 . 3 . 1 . . . . 1 . Engine 10 | 1 1 1 2 1 . . . 1 . 3 . . . . . . . . Core . | . . . . . . . . . . . . . . . . . . . Reactor 2 | . . . . . . . . . . . . 1 . . . . 1 . Propulsion 58 | 2 . . 11 10 . 4 . 3 . 12 5 2 . . . 3 6 . Treads 6 | . . . . . . . . . . . . 2 . . . 3 1 . Leg 47 | 2 . . 7 10 . 4 . 3 . 12 5 . . . . . 4 . Wheel 4 | . . . 4 . . . . . . . . . . . . . . . Hover . | . . . . . . . . . . . . . . . . . . . Flight 1 | . . . . . . . . . . . . . . . . . 1 . Utility 30 | 1 2 4 4 . . 1 1 1 . 5 . 1 . 1 2 4 3 . Device 15 | . 1 2 2 . . . 1 . . 2 . 1 . . 2 2 2 . Storage 2 | 1 1 . . . . . . . . . . . . . . . . . Processor 5 | . . 1 2 . . 1 . . . . . . . . . . 1 . Hackware . | . . . . . . . . . . . . . . . . . . . Protection 8 | . . 1 . . . . . 1 . 3 . . . 1 . 2 . . Artifact . | . . . . . . . . . . . . . . . . . . . Weapon 56 | 3 2 3 10 5 . 5 . 2 . 9 1 . . 3 . 7 6 . Energy Gun 5 | 2 . . . . . . . . . 3 . . . . . . . . Energy Cannon 1 | . . . . . . . . . . . . . . . . . 1 . Ballistic Gun 34 | 1 2 3 8 5 . 5 . 2 . 4 . . . . . 1 3 . Ballistic Cannon 15 | . . . 1 . . . . . . 2 1 . . 3 . 6 2 . Launcher 1 | . . . 1 . . . . . . . . . . . . . . . Special Weapon . | . . . . . . . . . . . . . . . . . . . Impact Weapon . | . . . . . . . . . . . . . . . . . . . Slashing Weapon . | . . . . . . . . . . . . . . . . . . . Piercing Weapon . | . . . . . . . . . . . . . . . . . . . Special Melee Weapon . | . . . . . . . . . . . . . . . . . . . Unidentified Prototypes 3 | . . 1 2 . . . . . . . . . . . . . . . Parts Lost 60 | . . 4 2 3 . . . 5 . 19 . . . . . 2 25 . Power 6 | . . . 1 . . . . 1 . 2 . . . . . . 2 . Propulsion 21 | . . . 1 3 . . . 1 . 7 . . . . . 1 8 . Utility 11 | . . 2 . . . . . 1 . 3 . . . . . 1 4 . Weapon 22 | . . 2 . . . . . 2 . 7 . . . . . . 11 . Highest Loss Streak 12 | . . 2 1 1 . . . 3 . 8 . . . . . 1 12 . To Critical Strikes 2 | . . . . . . . . . . . . . . . . 1 1 . Average Backups 6 | 1 3 6 9 10 10 10 8 8 9 5 4 5 5 4 3 4 2 1 Power 1 | . 1 2 2 2 2 2 2 1 2 1 1 . . . . . . . Propulsion . | . . . . 1 1 1 1 1 2 1 . . . . . . . . Utility 2 | . . . 2 3 3 3 3 3 3 1 1 2 2 2 1 1 1 1 Weapon 2 | . 2 3 4 4 4 3 2 2 2 1 1 2 3 2 2 2 1 . Tool/Special . | . . . . . . . . . . . . . . . . . . . Unused Backups 15 | . . . 5 1 . 3 . . . . 1 1 . 1 . 2 . 1 Power 2 | . . . 1 . . . . . . . . 1 . . . . . . Propulsion . | . . . . . . . . . . . . . . . . . . . Utility 4 | . . . 2 1 . . . . . . . . . . . . . 1 Weapon 9 | . . . 2 . . 3 . . . . 1 . . 1 . 2 . . Tool/Special . | . . . . . . . . . . . . . . . . . . . Average Slot Usage (%) 88 | . 91 97 97 97 100 100 99 99 100 91 80 73 66 65 67 84 63 . Engine 5 | . 14 11 8 9 9 9 7 7 7 6 6 4 . . . . . . Reactor 1 | . . . . . . . . . . . . 2 6 6 5 5 3 . Treads 3 | . . . . . . . . . . . . 5 13 13 11 9 9 . Leg 19 | . 28 22 29 33 36 36 30 29 30 28 26 14 . . . . 5 . Device 7 | . 6 11 8 . . . 7 5 . 6 6 6 6 6 14 16 11 . Storage 4 | . 14 11 9 9 9 9 7 7 7 2 . . . . . . . . Processor 12 | . . 2 9 18 18 18 15 15 15 15 13 13 13 13 11 11 9 . Protection 3 | . . 6 . . . . . 1 7 5 6 6 6 6 5 5 2 . Ballistic Gun 14 | . 15 32 18 27 27 27 29 29 30 14 . . . . . . 4 . Ballistic Cannon 10 | . . . 8 . . . . . . 5 20 20 20 19 17 33 14 . Peak Build Rating 102 | 6 7 13 34 34 31 42 50 51 50 59 65 67 66 67 77 102 99 . Average Rating 50 | 4 6 10 26 31 31 38 49 49 50 45 64 65 66 66 74 92 68 . On Entrance 42 | . 6 7 9 34 31 31 42 50 50 50 59 65 66 66 67 77 92 . Avg Prop Armor Cover (%) 5 | . . . 8 . . . . . . . 2 . . . . . 5 . Naked Turns 108 | . . . . . . . . . . . . . . . . . 54 54 Heaviest Build 107 | 10 20 28 32 30 26 28 36 39 38 47 59 61 61 62 71 107 102 . Greatest Support 146 | 20 20 20 59 59 55 66 64 66 66 93 93 140 140 140 140 140 146 3 Greatest Overweight (x) 1 | . . 1 1 . . . . . . 1 . . . . . 1 1 . Average Overweight (x) . | . . 1 . . . . . . . . . . . . . . . . Largest Inventory Capacity 10 | 8 10 10 10 10 10 10 10 10 10 10 5 5 5 5 5 5 5 5 Average Capacity 7 | 6 9 10 10 10 10 10 10 10 10 6 5 5 5 5 5 5 5 5 Most Carried 10 | 2 6 8 10 10 10 10 9 10 9 10 5 5 5 5 4 5 5 1 Average Carried 6 | 1 3 6 9 10 10 9 8 8 9 6 4 5 5 4 4 4 2 1 Final Capacity 10 | 8 10 10 10 10 10 10 10 10 10 5 5 5 5 5 5 5 5 5 Final Carried 10 | 2 6 7 10 10 10 10 8 9 9 5 5 5 5 5 4 5 1 1 Class Distribution -------------------- 32% | Scavenger-Executioner 23% | Scavenger-Gunner 18% | Gunner 13% | Commander-Gunner 4% | Tank 3% | Executioner 3% | Mutant Dominant Class ---------------- Mutant | -10/Materials Tank | -9/Materials Gunner | -8/Materials Commander-Gunner | -8/Garrison Commander-Gunner | -8/Materials Scavenger-Gunner | -8/Garrison Scavenger-Gunner | -7/Factory Gunner | -7/Garrison Scavenger-Gunner | -7/Factory Scavenger-Gunner | -7/Garrison Executioner | -6/Factory Executioner | -6/Waste Scavenger-Executioner | -6/Factory Scavenger-Executioner | -6/Garrison Scavenger-Executioner | -5/Factory Scavenger-Executioner | -5/Garrison Scavenger-Executioner | -4/Factory Mutant | -4/Extension Resources | -11 -10 -9 -8 -8 -8 -8 -7 -7 -7 -7 -6 -6 -6 -6 -5 -5 -4 -4 ----------- Run | Yrd Mat Mat Mat Gar Mat Gar Fac Gar Fac Gar Fac Was Fac Gar Fac Gar Fac Ext Matter Collected 11343 | 270 35 790 1396 1163 . 528 62 901 . 1531 742 184 . 875 216 1902 748 . Remotely . | . . . . . . . . . . . . . . . . . . . Salvage Created 12021 | 88 35 1197 1538 1361 . 662 62 1241 . 2028 773 787 . 556 373 899 421 . Parts 577 | 3 1 68 103 75 . 39 1 72 . 92 46 7 . 16 10 33 11 . Haulers Intercepted 10 | . . 3 5 . . . . . . . 1 . . . 1 . . . Recyclers Shooed 4 | . . 1 2 . . . . . . . . . . . 1 . . . Parts Field Recycled . | . . . . . . . . . . . . . . . . . . . Retrieved Matter . | . . . . . . . . . . . . . . . . . . . Parts Self-Destructed . | . . . . . . . . . . . . . . . . . . . Prevented . | . . . . . . . . . . . . . . . . . . . Parts Restored . | . . . . . . . . . . . . . . . . . . . Kills | -11 -10 -9 -8 -8 -8 -8 -7 -7 -7 -7 -6 -6 -6 -6 -5 -5 -4 -4 ------- Run | Yrd Mat Mat Mat Gar Mat Gar Fac Gar Fac Gar Fac Was Fac Gar Fac Gar Fac Ext Combat Hostiles Destroyed 242 | . 1 22 24 35 . 13 1 27 . 41 15 3 . 18 6 28 8 . Guns 140 | . 1 22 10 35 . 13 1 27 . 30 . . . . . . 1 . Cannons 92 | . . . 10 . . . . . . 10 10 3 . 18 6 28 7 . AOE 9 | . . . 4 . . . . . . . 5 . . . . . . . Classes Destroyed 18 | 1 1 7 3 1 . . . . . . 2 1 . 1 . 1 . . Worker 1 | . . 1 . . . . . . . . . . . . . . . . Builder 9 | . . 1 4 . . . . . . . 4 . . . . . . . Tunneler 2 | . . . . . . . . . . . 2 . . . . . . . Hauler 10 | . . 3 5 . . . . . . . 1 . . . 1 . . . Recycler 9 | 1 . 2 5 . . . . . . . 1 . . . . . . . Operator 1 | . . . 1 . . . . . . . . . . . . . . . Watcher 9 | . . 1 4 3 . . . . . . 1 . . . . . . . Swarmer 49 | . . 7 7 11 . . . 9 . 5 4 . . 2 . 4 . . Grunt 106 | . 1 10 10 11 . 3 . 14 . 17 6 . . 7 5 17 5 . Brawler 6 | . . 1 . . . . . 1 . 2 1 . . 1 . . . . Duelist 5 | . . . 1 1 . . . . . 1 . . . 2 . . . . Sentry 50 | . . 4 5 10 . 8 1 2 . 11 1 . . 3 . 5 . . Demolisher 1 | . . . . . . . . . . . . . . . . 1 . . Specialist 2 | . . . . . . . . . . . 2 . . . . . . . Hunter 12 | . . . 1 1 . 1 . 2 . 1 . . . 2 1 . 3 . Programmer 9 | . . . . 1 . 1 . . . 4 2 . . . . 1 . . Behemoth 1 | . . . . . . . . . . . . . . 1 . . . . Compactor 3 | . . . . . . . . . . . . 3 . . . . . . Wasp 1 | . . . . . . . . . . . . 1 . . . . . . Thug 1 | . . . . . . . . . . . . . . 1 . . . . Best Kill Streak 8 | 1 1 4 7 5 . 4 1 4 . 6 6 1 . 8 4 7 6 . Combat Bots Only 8 | . 1 4 5 5 . 4 1 4 . 6 5 1 . 8 4 7 6 . Max Kills in Single Turn 5 | 1 1 2 4 2 . 1 1 2 . 2 5 2 . 2 1 2 1 . Gunslinging 1 | . . 1 . 1 . . . 1 . 1 . . . . . . . . Exploded 4 | . . . 2 . . . . . . . 4 . . . . . . . Melee . | . . . . . . . . . . . . . . . . . . . Uniques/NPCs Destroyed . | . . . . . . . . . . . . . . . . . . . Combat | -11 -10 -9 -8 -8 -8 -8 -7 -7 -7 -7 -6 -6 -6 -6 -5 -5 -4 -4 -------- Run | Yrd Mat Mat Mat Gar Mat Gar Fac Gar Fac Gar Fac Was Fac Gar Fac Gar Fac Ext Hostile Shots Fired 1436 | . 3 90 79 114 . 35 18 165 . 390 30 . . 36 22 130 298 26 Missed 455 | . 1 27 23 27 . 10 5 60 . 141 15 . . 10 11 34 84 7 Hits 981 | . 2 63 56 87 . 25 13 105 . 249 15 . . 26 11 96 214 19 Melee 1 | . . . . . . . . . . 1 . . . . . . . . Projectile 980 | . 2 63 56 87 . 25 13 105 . 248 15 . . 26 11 96 214 19 AOE 7 | . . . . . . . . . . . . . . . . 4 3 . Critical Strikes 27 | . . 1 4 . . 1 . 1 . 2 2 . . 1 . 4 10 1 Part Disruptions 4 | . . . . . . . . . . . 2 . . . . . 2 . Damage Taken 14684 | . 21 753 789 1153 . 371 103 1200 . 2702 560 . . 666 167 1837 3898 464 Core 2207 | . 10 110 32 177 . 61 . 117 . 382 18 . . 51 . 97 688 464 Absorbed by Shields 340 | . . . . . . . . . . . . . . . 45 295 . . Regen/Repaired (Parts) 533 | . . . . . . . . . . . . 130 . 396 7 . . . Core Remaining (%) 75 | 100 96 72 . . . 50 . . . 28 . . . 91 . 90 . . Volleys Fired 573 | 2 4 71 93 69 . 32 3 51 . 92 29 5 . 34 11 43 34 . Largest 6 | 2 2 3 3 3 . 3 4 4 . 4 3 3 . 3 3 6 6 . Hottest 316 | 80 40 63 87 84 . 86 114 114 . 188 150 150 . 150 150 316 316 . Shots Fired 1841 | 4 8 201 273 207 . 96 12 205 . 281 85 15 . 102 33 225 94 . Gun 1189 | 4 8 201 180 207 . 96 12 205 . 239 . . . . . . 37 . Cannon 649 | . . . 90 . . . . . . 42 85 15 . 102 33 225 57 . Launcher 3 | . . . 3 . . . . . . . . . . . . . . . Special . | . . . . . . . . . . . . . . . . . . . Kinetic 1789 | . 8 201 270 207 . 96 12 205 . 237 85 15 . 102 33 225 93 . Thermal 19 | 4 . . . . . . . . . 14 . . . . . . 1 . Explosive 3 | . . . 3 . . . . . . . . . . . . . . . Electromagnetic 30 | . . . . . . . . . . 30 . . . . . . . . Robot Hit Streak 25 | 3 3 12 14 25 . 17 9 9 . 22 7 6 . 8 5 15 8 . Robot Miss Streak 13 | . 1 5 3 13 . 3 1 5 . 4 6 3 . 4 2 3 4 . Penetration Max 1 | . . . . 1 . 1 . 1 . 1 1 1 . 1 1 1 1 . Secondary Targets 25 | . . 3 . 10 . . . 6 . 6 . . . . . . . . Max Gunslinging Chain 1 | . . 1 . 1 . . . 1 . 1 . . . . . . . . Shots Hit Robots 1069 | 3 6 116 170 150 . 56 10 105 . 174 34 8 . 45 12 125 55 . Core Hits 502 | 2 3 49 71 104 . 18 2 49 . 74 36 5 . 22 7 43 17 . Critical Kills 24 | . . . 2 1 . 5 . 2 . 4 . . . . . 7 3 . Critical Parts Destroyed 46 | . . . 3 5 . 4 . 6 . 6 . . . . . 12 10 . Critical Strikes 136 | . . . 5 9 . 9 . 8 . 15 9 . . 16 3 45 17 . Burn 1 | . . . . . . . . . . 1 . . . . . . . . Destroy 76 | . . . 5 9 . 9 . 8 . 12 . . . . . 20 13 . Blast 58 | . . . . . . . . . . 1 9 . . 16 3 25 4 . Corrupt 1 | . . . . . . . . . . 1 . . . . . . . . Melee Attacks . | . . . . . . . . . . . . . . . . . . . Impact . | . . . . . . . . . . . . . . . . . . . Slashing . | . . . . . . . . . . . . . . . . . . . Piercing . | . . . . . . . . . . . . . . . . . . . Sneak Attacks . | . . . . . . . . . . . . . . . . . . . Combat Hostiles . | . . . . . . . . . . . . . . . . . . . Follow-up Attacks . | . . . . . . . . . . . . . . . . . . . Damage Inflicted 28805 | 36 75 1583 3446 2605 . 1134 215 2461 . 4169 2795 591 . 2613 844 4949 1289 . Guns 13539 | 36 75 1583 1822 2605 . 1134 215 2461 . 3241 . . . . . . 367 . Cannons 14149 | . . . 1282 . . . . . . 928 2058 591 . 2613 844 4949 884 . Explosions 1079 | . . . 342 . . . . . . . 737 . . . . . . . Melee . | . . . . . . . . . . . . . . . . . . . Ramming 38 | . . . . . . . . . . . . . . . . . 38 . Kinetic 27000 | . 75 1583 3104 2605 . 1134 215 2461 . 3550 2058 591 . 2613 844 4949 1218 . Thermal 223 | 36 . . . . . . . . . 154 . . . . . . 33 . Explosive 855 | . . . 342 . . . . . . . 513 . . . . . . . Electromagnetic 689 | . . . . . . . . . . 465 224 . . . . . . . Impact . | . . . . . . . . . . . . . . . . . . . Slashing . | . . . . . . . . . . . . . . . . . . . Piercing . | . . . . . . . . . . . . . . . . . . . Highest Corruption 4 | . . . . 2 2 2 . 1 1 4 1 1 1 1 1 1 1 1 Average Corruption 1 | . . . . 1 2 2 . 1 1 2 1 1 1 1 1 1 1 1 Corruption Purged . | . . . . . . . . . . . . . . . . . . . Corruption Blocked . | . . . . . . . . . . . . . . . . . . . Effects 99 | . . . . 5 . 17 . 2 2 33 4 . . 13 4 17 1 1 Message Errors 23 | . . . . 2 . 4 . . 1 4 . . . 5 . 7 . . Matter Fused 21 | . . . . 1 . 5 . . 1 8 1 . . 2 2 1 . . Heat Flow Errors 14 | . . . . . . 1 . . . 8 . . . 3 . 2 . . Energy Discharges 15 | . . . . . . 3 . . . 5 . . . 1 1 5 . . Parts Fused 1 | . . . . . . . . . . . . . . 1 . . . . Data Loss (minor) 12 | . . . . 1 . 1 . . . 3 3 . . 1 1 1 1 . Data Loss (major) 4 | . . . . 1 . . . . . 2 . . . . . . . 1 Misfires 6 | . . . . . . 1 . 2 . 2 . . . . . 1 . . Alerts 1 | . . . . . . 1 . . . . . . . . . . . . Weapon Failures 2 | . . . . . . 1 . . . 1 . . . . . . . . Overload Shots . | . . . . . . . . . . . . . . . . . . . Overflow Damage 594 | . . . 54 . . . . . . 113 180 14 . 104 36 93 . . Projectiles 536 | . . . 38 . . . . . . 113 138 14 . 104 36 93 . . Explosions 58 | . . . 16 . . . . . . . 42 . . . . . . . Melee . | . . . . . . . . . . . . . . . . . . . Knockbacks 78 | . . . 13 . . . . . . 4 16 . . 7 3 26 9 . Impact . | . . . . . . . . . . . . . . . . . . . Kinetic 74 | . . . 11 . . . . . . 4 15 . . 7 3 25 9 . Secondary 4 | . . . 2 . . . . . . . 1 . . . . 1 . . Self-Inflicted Damage 310 | . . . 22 . . . . . . . 288 . . . . . . . Shots 6 | . . . 1 . . . . . . . 5 . . . . . . . Rammed 3 | . . . . . . . . . . . . . . . . . 3 . Targets Rammed 3 | . . . . . . . . . . . . . . . . . 3 . Kicked . | . . . . . . . . . . . . . . . . . . . Crushed . | . . . . . . . . . . . . . . . . . . . Highest Temperature 643 | 6 . 77 228 108 . 237 112 223 . 559 29 . . 170 . 643 20 . Average Temperature 69 | 3 . 15 22 20 . 28 61 55 . 122 17 . . 79 . 192 11 . Received Heat Transfer 3922 | . 12 297 378 351 . 135 30 447 . 723 144 . . 105 54 610 537 99 Effects 25 | . . . . . . . . . . 14 . . . . . 11 . . Shutdowns 5 | . . . . . . . . . . 1 . . . . . 4 . . Interference 13 | . . . . . . . . . . 6 . . . . . 7 . . Short Circuit 1 | . . . . . . . . . . 1 . . . . . . . . Damage (minor) 1 | . . . . . . . . . . 1 . . . . . . . . Damage (major) 4 | . . . . . . . . . . 4 . . . . . . . . Damage (core) 1 | . . . . . . . . . . 1 . . . . . . . . Siege Activations . | . . . . . . . . . . . . . . . . . . . Martial Activations . | . . . . . . . . . . . . . . . . . . . Shielding Activations . | . . . . . . . . . . . . . . . . . . . Robots Disrupted . | . . . . . . . . . . . . . . . . . . . Combat Hostiles . | . . . . . . . . . . . . . . . . . . . Robots Corrupted 1 | . . . . . . . . . . 1 . . . . . . . . Combat Hostiles 1 | . . . . . . . . . . 1 . . . . . . . . Parts Fried . | . . . . . . . . . . . . . . . . . . . Impact Corruptions . | . . . . . . . . . . . . . . . . . . . Robots Melted . | . . . . . . . . . . . . . . . . . . . Combat Hostiles . | . . . . . . . . . . . . . . . . . . . Parts Melted 2 | . . . . . . . . . . 2 . . . . . . . . Heat Transferred 569 | 75 . . . . . . . . . 444 . . . . . . 50 . Parts Sabotaged . | . . . . . . . . . . . . . . . . . . . Parts Stolen . | . . . . . . . . . . . . . . . . . . . Parts Stripped . | . . . . . . . . . . . . . . . . . . . Power Chain Reactions . | . . . . . . . . . . . . . . . . . . . Alert | -11 -10 -9 -8 -8 -8 -8 -7 -7 -7 -7 -6 -6 -6 -6 -5 -5 -4 -4 ------- Run | Yrd Mat Mat Mat Gar Mat Gar Fac Gar Fac Gar Fac Was Fac Gar Fac Gar Fac Ext Maximum Alert Level 5 | . . 1 1 4 3 4 2 4 3 5 4 2 1 3 2 5 3 1 Low Security (%) 17 | 100 100 96 76 11 . . . . . . . . . 5 . . . . Level 1 8 | . . 3 23 24 . . . . . . . 10 100 13 . 4 . 100 Level 2 17 | . . . . 19 . 10 100 13 . 17 . 90 . 5 100 15 46 . Level 3 29 | . . . . 12 100 37 . 46 100 31 47 . . 75 . 31 53 . Level 4 23 | . . . . 31 . 52 . 39 . 22 52 . . . . 45 . . Level 5 4 | . . . . . . . . . . 28 . . . . . 2 . . High Security . | . . . . . . . . . . . . . . . . . . . Max Security . | . . . . . . . . . . . . . . . . . . . Peak Influence 2111 | 5 20 226 328 1535 755 1275 670 1463 767 2111 1310 452 272 989 548 1605 842 305 Initial 1108 | . . 3 92 35 748 477 669 441 767 508 1108 452 272 162 518 344 842 303 Average 778 | 1 2 48 140 747 748 988 652 1010 750 1238 1113 425 256 733 504 1025 707 299 Influence Increases 10469 | 5 23 660 835 1550 7 918 41 1172 . 1853 600 37 . 967 180 1311 298 12 Destroy 0b10 Robot/C 5410 | . 20 440 480 840 . 560 20 660 . 1040 255 . . 390 90 495 120 . Destroy 0b10 Robot/NC 210 | 5 . 40 95 20 5 . . . . 5 36 . . . 4 . . . Destroy Leader 552 | . . 108 128 20 . 30 10 40 . 50 60 . . 24 18 32 32 . Allied During Kill 988 | . . . . 172 2 181 11 121 . 223 22 . . 226 6 24 . . Successful Hack 134 | . 3 11 24 28 . . . . . 28 . . . 22 18 . . . Disable Machine 309 | . . 15 45 . . 15 . 30 . . 132 . . 12 24 . 36 . Anti-Garrison Action 1439 | . . . . 350 . 50 . 200 . 350 . . . 151 . 338 . . Destroy Structure 719 | . . 1 33 105 . 52 . 31 . 67 83 37 . 130 20 134 26 . Partial Spotted 12 | . . . . . . . . . . . . . . . . . . 12 Lose Combat Pursuer 696 | . . 45 30 15 . 30 . 90 . 90 12 . . 12 . 288 84 . Influence Decreases 10174 | 5 13 450 1000 70 807 378 686 339 736 469 1417 942 157 210 677 198 1283 337 Entered New Map 6641 | . . 7 128 20 787 258 606 189 696 219 1003 842 117 70 471 148 763 317 Time Decay 1908 | 5 13 323 457 . 20 . 80 . 40 . 334 100 40 . 206 . 270 20 Lost Part 600 | . . 40 20 30 . . . 50 . 190 . . . . . 20 250 . Lost Ally 550 | . . . . 20 . 120 . 100 . 60 80 . . 140 . 30 . . Purge Threat 475 | . . 80 395 . . . . . . . . . . . . . . . Squads Dispatched 21 | . 1 2 2 . . . . . . . 9 . . . 3 . 4 . Investigation 8 | . . . . . . . . . . . 2 . . . 3 . 3 . Extermination 4 | . . . . . . . . . . . 3 . . . . . 1 . Reinforcement 7 | . 1 2 2 . . . . . . . 2 . . . . . . . Assault 2 | . . . . . . . . . . . 2 . . . . . . . Garrison . | . . . . . . . . . . . . . . . . . . . Intercept . | . . . . . . . . . . . . . . . . . . . Searches Triggered . | . . . . . . . . . . . . . . . . . . . Construction Impeded . | . . . . . . . . . . . . . . . . . . . Haulers Reinforced 1 | . . . . . . . . . . . 1 . . . . . . . Active Scanning Responses . | . . . . . . . . . . . . . . . . . . . Cargo Convoy Interrupts . | . . . . . . . . . . . . . . . . . . . Stealth | -11 -10 -9 -8 -8 -8 -8 -7 -7 -7 -7 -6 -6 -6 -6 -5 -5 -4 -4 --------- Run | Yrd Mat Mat Mat Gar Mat Gar Fac Gar Fac Gar Fac Was Fac Gar Fac Gar Fac Ext Distress Signals 10 | . . 4 3 1 . . . . . 1 . . . 1 . . . . Communications Jammed . | . . . . . . . . . . . . . . . . . . . Distress Signals . | . . . . . . . . . . . . . . . . . . . Times Spotted 376 | . 3 31 44 47 1 24 1 33 . 59 22 5 . 24 6 51 22 3 Peak Tracking Total 8 | . 4 5 6 6 1 6 1 6 . 6 4 2 . 6 4 8 5 3 Tactical Retreats 37 | . . 3 1 1 . 1 . 4 . 5 1 . . 1 . 18 2 . Traps | -11 -10 -9 -8 -8 -8 -8 -7 -7 -7 -7 -6 -6 -6 -6 -5 -5 -4 -4 ------- Run | Yrd Mat Mat Mat Gar Mat Gar Fac Gar Fac Gar Fac Was Fac Gar Fac Gar Fac Ext Traps Triggered 28 | . . . . 5 . 5 . 2 . 7 1 . . 3 . 4 1 . Indirectly . | . . . . . . . . . . . . . . . . . . . Trap Hack Attempts . | . . . . . . . . . . . . . . . . . . . Triggered . | . . . . . . . . . . . . . . . . . . . Disarmed . | . . . . . . . . . . . . . . . . . . . Reprogrammed . | . . . . . . . . . . . . . . . . . . . Reused . | . . . . . . . . . . . . . . . . . . . Traps Extracted . | . . . . . . . . . . . . . . . . . . . Installed . | . . . . . . . . . . . . . . . . . . . Triggered . | . . . . . . . . . . . . . . . . . . . Machines | -11 -10 -9 -8 -8 -8 -8 -7 -7 -7 -7 -6 -6 -6 -6 -5 -5 -4 -4 ---------- Run | Yrd Mat Mat Mat Gar Mat Gar Fac Gar Fac Gar Fac Was Fac Gar Fac Gar Fac Ext Machines Disabled 37 | . . 2 3 6 . 3 . 2 . 3 11 . . 2 2 . 3 . Max in Single Turn 6 | . . 1 1 2 . 2 . 2 . 2 6 . . . 1 . 1 . Garrison Relay 1 | . . . . . . . . . . 1 . . . . . . . . Phase Generator 3 | . . . . 1 . 1 . . . 1 . . . . . . . . Machines Repaired . | . . . . . . . . . . . . . . . . . . . Machines Dismantled . | . . . . . . . . . . . . . . . . . . . Machines Sabotaged . | . . . . . . . . . . . . . . . . . . . Overloaded Fab Kills . | . . . . . . . . . . . . . . . . . . . Hacking | -11 -10 -9 -8 -8 -8 -8 -7 -7 -7 -7 -6 -6 -6 -6 -5 -5 -4 -4 --------- Run | Yrd Mat Mat Mat Gar Mat Gar Fac Gar Fac Gar Fac Was Fac Gar Fac Gar Fac Ext Machines Accessed 44 | . 3 5 7 3 1 2 1 2 1 3 2 . 1 3 5 1 4 . Terminals 33 | . 3 4 5 3 . 2 . 2 . 3 2 . . 3 3 1 2 . Fabricators . | . . . . . . . . . . . . . . . . . . . Repair Stations . | . . . . . . . . . . . . . . . . . . . Recycling Units 1 | . . . . . . . . . . . . . . . . . 1 . Scanalyzers 4 | . . 1 1 . . . . . . . . . . . 1 . 1 . Garrison Access 6 | . . . 1 . 1 . 1 . 1 . . . 1 . 1 . . . Total Hacks 105 | . 9 11 25 5 1 2 1 7 1 4 7 . 1 6 13 2 10 . Successful 38 | . 3 6 14 2 1 2 1 . 1 2 . . 1 2 2 . 1 . Failed 66 | . 6 5 10 3 . . . 7 . 2 7 . . 4 11 2 9 . Catastrophic 19 | . 1 . 1 1 . . . 3 . 1 2 . . 2 3 1 4 . Database Lockouts 1 | . . . 1 . . . . . . . . . . . . . . . Manual 56 | . 9 6 22 . . . . . . . 7 . . . 8 . 4 . Terminals 85 | . 9 9 22 5 . 2 . 7 . 4 7 . . 6 8 2 4 . Fabricators . | . . . . . . . . . . . . . . . . . . . Repair Stations . | . . . . . . . . . . . . . . . . . . . Recycling Units 4 | . . . . . . . . . . . . . . . . . 4 . Scanalyzers 10 | . . 2 2 . . . . . . . . . . . 4 . 2 . Garrison Access 6 | . . . 1 . 1 . 1 . 1 . . . 1 . 1 . . . Terminal Hacks 21 | . 1 3 9 2 . 2 . . . 2 . . . 2 . . . . Open Door 1 | . . . . . . 1 . . . . . . . . . . . . Branch Access Points 2 | . . 1 1 . . . . . . . . . . . . . . . Emergency Access Points 3 | . . . . 1 . . . . . 1 . . . 1 . . . . Unreport Threat 6 | . . 1 5 . . . . . . . . . . . . . . . Locate Traps 5 | . 1 1 3 . . . . . . . . . . . . . . . Garrison Registry 2 | . . . . . . 1 . . . . . . . 1 . . . . Patrol Navigation 2 | . . . . 1 . . . . . 1 . . . . . . . . Fabricator Hacks . | . . . . . . . . . . . . . . . . . . . Repair Station Hacks . | . . . . . . . . . . . . . . . . . . . Recycling Unit Hacks 1 | . . . . . . . . . . . . . . . . . 1 . Process 1 | . . . . . . . . . . . . . . . . . 1 . Scanalyzer 4 | . . 2 1 . . . . . . . . . . . 1 . . . Retrieve Study 4 | . . 2 1 . . . . . . . . . . . 1 . . . Garrison Access Hacks 6 | . . . 1 . 1 . 1 . 1 . . . 1 . 1 . . . Unlock Access 6 | . . . 1 . 1 . 1 . 1 . . . 1 . 1 . . . Unauthorized Hacks 6 | . 2 1 3 . . . . . . . . . . . . . . . Terminals 6 | . 2 1 3 . . . . . . . . . . . . . . . Botnet 6 | . 2 1 3 . . . . . . . . . . . . . . . Fabricators . | . . . . . . . . . . . . . . . . . . . Repair Stations . | . . . . . . . . . . . . . . . . . . . Recycling Units . | . . . . . . . . . . . . . . . . . . . Scanalyzers . | . . . . . . . . . . . . . . . . . . . Garrison Access . | . . . . . . . . . . . . . . . . . . . Data Cores Recovered 2 | . . . 1 . 1 . . . . . . . . . . . . . Used . | . . . . . . . . . . . . . . . . . . . Hacking Detections 37 | . 3 4 6 2 . 1 . 2 1 3 2 . . 3 5 1 4 . Full Trace Events 16 | . . 1 . 1 . . . 2 . 1 2 . . 2 3 1 3 . Feedback Events 2 | . . . . . . . . 1 . . . . . . 1 . . . Corruption 2 | . . . . . . . . 1 . . . . . . 1 . . . Feedback Blocked . | . . . . . . . . . . . . . . . . . . . Robot Schematics Acquired . | . . . . . . . . . . . . . . . . . . . Robots Built . | . . . . . . . . . . . . . . . . . . . Authchips . | . . . . . . . . . . . . . . . . . . . Time . | . . . . . . . . . . . . . . . . . . . Total Robot Build Rating . | . . . . . . . . . . . . . . . . . . . Part Schematics Acquired . | . . . . . . . . . . . . . . . . . . . Parts Built . | . . . . . . . . . . . . . . . . . . . Authchips . | . . . . . . . . . . . . . . . . . . . Time . | . . . . . . . . . . . . . . . . . . . Total Part Build Rating . | . . . . . . . . . . . . . . . . . . . Part Studies Acquired 4 | . . 2 1 . . . . . . . . . . . 1 . . . Parts Repaired . | . . . . . . . . . . . . . . . . . . . Time . | . . . . . . . . . . . . . . . . . . . Parts Recycled . | . . . . . . . . . . . . . . . . . . . Recycled Matter . | . . . . . . . . . . . . . . . . . . . Retrieved Matter . | . . . . . . . . . . . . . . . . . . . Retrieved Components . | . . . . . . . . . . . . . . . . . . . Parts Scanalyzed . | . . . . . . . . . . . . . . . . . . . Part Schematics Acquired . | . . . . . . . . . . . . . . . . . . . Parts Damaged . | . . . . . . . . . . . . . . . . . . . Bothacking | -11 -10 -9 -8 -8 -8 -8 -7 -7 -7 -7 -6 -6 -6 -6 -5 -5 -4 -4 ------------ Run | Yrd Mat Mat Mat Gar Mat Gar Fac Gar Fac Gar Fac Was Fac Gar Fac Gar Fac Ext Used RIF Installer 7 | . . . . 2 . 1 . 1 . 1 . . . 1 . 1 . . Coupler Efficiency 1 | . . . . . . . . . . . . . . 1 . . . . Hotswap 1 | . . . . . . 1 . . . . . . . . . . . . Threat Obfuscator 1 | . . . . . . . . . . 1 . . . . . . . . Watcher Feeds 1 | . . . . . . . . 1 . . . . . . . . . . Patrol Navigation 1 | . . . . 1 . . . . . . . . . . . . . . Program Shield 1 | . . . . . . . . . . . . . . . . 1 . . Robots Hacked . | . . . . . . . . . . . . . . . . . . . Non-combat . | . . . . . . . . . . . . . . . . . . . Combat . | . . . . . . . . . . . . . . . . . . . Robot Hacks Applied . | . . . . . . . . . . . . . . . . . . . Relay Couplers Released 3 | . . . . . . . . . . 3 . . . . . . . . Machine Destruction 3 | . . . . . . . . . . 3 . . . . . . . . Fabnet Peak Effective % . | . . . . . . . . . . . . . . . . . . . Robots Rewired 23 | . . . . 7 . 5 . 2 . 7 . . . . . 1 . 1 Allies Hacked 3 | . . . . 1 . 1 . . . 1 . . . . . . . . Hacks Repelled . | . . . . . . . . . . . . . . . . . . . Allies | -11 -10 -9 -8 -8 -8 -8 -7 -7 -7 -7 -6 -6 -6 -6 -5 -5 -4 -4 -------- Run | Yrd Mat Mat Mat Gar Mat Gar Fac Gar Fac Gar Fac Was Fac Gar Fac Gar Fac Ext Total Allies 42 | . . . . 7 . 5 . 2 . 7 . 19 . . . 1 . 1 Largest Group 19 | . . . . 7 6 6 5 5 1 7 5 19 14 14 2 1 . . Highest-Rated Group 684 | . . . . 170 130 153 132 132 12 253 180 684 559 559 53 68 . . Highest-Rated Ally 68 | . . . . 40 40 40 40 40 12 43 43 50 50 50 27 68 . . Total Orders . | . . . . . . . . . . . . . . . . . . . Ally Attacks 372 | . . . . 18 3 57 . 30 . 40 12 113 . 85 . 13 . 1 Total Damage 10905 | . . . . 453 55 1298 . 589 . 1103 437 3216 . 2658 . 1056 . 40 Kills 65 | . . . . 8 1 15 . 6 . 12 2 7 . 9 . 5 . . Allies Corrupted . | . . . . . . . . . . . . . . . . . . . Allies Melted . | . . . . . . . . . . . . . . . . . . . Intel | -11 -10 -9 -8 -8 -8 -8 -7 -7 -7 -7 -6 -6 -6 -6 -5 -5 -4 -4 ------- Run | Yrd Mat Mat Mat Gar Mat Gar Fac Gar Fac Gar Fac Was Fac Gar Fac Gar Fac Ext Active Infowar (turns) 927 | . 82 845 . . . . . . . . . . . . . . . . Seismic 927 | . 82 845 . . . . . . . . . . . . . . . . Robot Analysis Total . | . . . . . . . . . . . . . . . . . . . Derelict Logs Recovered . | . . . . . . . . . . . . . . . . . . . Drone Launches . | . . . . . . . . . . . . . . . . . . . Drone Recoveries . | . . . . . . . . . . . . . . . . . . . Exploration | -11 -10 -9 -8 -8 -8 -8 -7 -7 -7 -7 -6 -6 -6 -6 -5 -5 -4 -4 ------------- Run | Yrd Mat Mat Mat Gar Mat Gar Fac Gar Fac Gar Fac Was Fac Gar Fac Gar Fac Ext Turns Passed 14601 | 83 174 1157 1181 1893 40 825 163 1316 82 2036 750 200 80 1221 436 2317 593 54 Spaces Moved 8196 | 53 117 397 641 1223 32 459 113 733 69 1314 510 114 29 638 236 1065 394 59 Core 166 | 1 . . . . . . . . . . . . . . . . 106 59 Treads 2138 | . . . . . . . . . . . . 35 29 638 236 1065 135 . Legs 5780 | 52 117 397 562 1223 32 459 113 733 69 1314 510 79 . . . . 120 . Wheels 79 | . . . 79 . . . . . . . . . . . . . . . Hover . | . . . . . . . . . . . . . . . . . . . Flight 33 | . . . . . . . . . . . . . . . . . 33 . Fastest Speed 40 | 50 120 190 100 113 115 115 120 116 120 105 116 117 160 160 160 160 40 50 Average Speed 135 | 118 120 190 123 118 115 119 120 119 120 113 116 130 160 160 160 191 116 50 Slowest Speed 240 | 120 120 190 190 121 115 122 120 120 120 182 117 160 160 160 160 240 190 50 Overloaded Moves . | . . . . . . . . . . . . . . . . . . . Propulsion Burnouts . | . . . . . . . . . . . . . . . . . . . Robots Hopped . | . . . . . . . . . . . . . . . . . . . Potential Cave-ins . | . . . . . . . . . . . . . . . . . . . Cave-ins Triggered . | . . . . . . . . . . . . . . . . . . . Exploration Rate (%) 37 | 3 27 47 60 98 5 65 4 67 3 99 20 69 1 48 7 74 8 12 Regions Visited 18 Branch Regions 1 Pre-discovered Areas . | . . . . . . . . . . . . . . . . . . . Known Exits Taken 6 | . . . 1 . 1 . 1 . 1 . . . 1 . 1 . . . Unknown Exits Taken 4 | 1 1 1 . . . . . . . . . . . . . . 1 . Scrap Searched . | . . . . . . . . . . . . . . . . . . . Spaces Dug 23 | . . . . . . . . 3 . . 7 . . 4 9 . . . Terrain Destroyed 549 | . . . 31 121 . 72 . 15 . 78 93 3 . 42 16 64 14 . Melee . | . . . . . . . . . . . . . . . . . . . Projectile 254 | . . . 15 . . . . 14 . 26 60 3 . 42 16 64 14 . AOE 294 | . . . 16 121 . 72 . . . 52 33 . . . . . . . Terrain Rammed . | . . . . . . . . . . . . . . . . . . . Walls Destroyed . | . . . . . . . . . . . . . . . . . . . Machines Disabled . | . . . . . . . . . . . . . . . . . . . Actions | -11 -10 -9 -8 -8 -8 -8 -7 -7 -7 -7 -6 -6 -6 -6 -5 -5 -4 -4 --------- Run | Yrd Mat Mat Mat Gar Mat Gar Fac Gar Fac Gar Fac Was Fac Gar Fac Gar Fac Ext Total 10323 | 65 141 642 879 1521 35 669 132 1042 68 1647 562 148 63 713 253 1210 450 83 Wait 1001 | 2 11 161 71 128 4 107 14 226 . 114 6 19 35 32 5 52 1 13 Move 8176 | 52 116 396 641 1221 31 457 113 732 68 1312 510 113 28 636 235 1063 393 59 Hop . | . . . . . . . . . . . . . . . . . . . Pick Up 39 | 2 3 2 13 1 . 4 . 1 . 1 3 1 . 1 . 6 1 . Fast Attach 63 | 6 2 3 5 3 . . . 1 . 15 . 2 . 3 1 9 13 . Attach 24 | . . 3 2 . . . 2 4 . 6 1 . . . 1 1 4 . Detach 7 | . 1 1 1 . . . . . . 2 . . . . . 2 . . Swap 99 | 1 3 4 26 15 . 12 . 5 . 20 6 2 . 1 . 4 . . Drop 107 | . 1 1 27 15 . 14 . 1 . 17 7 6 . 6 . 11 1 . Fire 573 | 2 4 71 93 69 . 32 3 51 . 92 29 5 . 34 11 43 34 . Melee . | . . . . . . . . . . . . . . . . . . . Ram 1 | . . . . . . . . . . . . . . . . . 1 . Kick . | . . . . . . . . . . . . . . . . . . . Crush 2 | . . . . . . . . . . . . . . . . . 2 . Escape Stasis 38 | . . . . 8 . 2 . 4 . 16 . . . . . 8 . . Rewire 193 | . . . . 61 . 41 . 17 . 52 . . . . . 11 . 11 Trap . | . . . . . . . . . . . . . . . . . . . Miscellaneous . | . . . . . . . . . . . . . . . . . . . Route ------- -11/Scrapyard -10/Materials -9/Materials (discovered 4 exits: *Mat / *Min x2 / Sto) -8/Materials (discovered 2 exits: *Fac / Gar) -8/Garrison (discovered 3 exits: *Mat x3) -8/Materials -8/Garrison (discovered 3 exits: *Fac x3) -7/Factory -7/Garrison (discovered 4 exits: *Fac x4) -7/Factory -7/Garrison (discovered 3 exits: *Fac x3) -6/Factory -6/Waste -6/Factory -6/Garrison (discovered 3 exits: *Fac x3) -5/Factory -5/Garrison (discovered 3 exits: *Fac x3) -4/Factory -4/Extension History --------- Turn | Location | Event 11 | -11/Scrapyard | Discovered new exit (range 15) 84 | -11/Scrapyard | Entered Materials 253 | -10/Materials | Discovered new exit (range 5) 258 | -10/Materials | Entered another Materials area 258 | -9/Materials | Evolved 2 slots: Utility x1, Weapon x1 286 | -9/Materials | Discovered new exit (range 16) 682 | -9/Materials | Identified exit to Mines 682 | -9/Materials | Identified exit to Storage 703 | -9/Materials | Build established: Tank 1342 | -9/Materials | Discovered new exit (range 12) 1380 | -9/Materials | Build established: Gunner 1415 | -9/Materials | Entered another Materials area 1415 | -8/Materials | Evolved 2 slots: Propulsion x2 1863 | -8/Materials | Build established: Scavenger-Gunner 1921 | -8/Materials | Central database locked down 2337 | -8/Materials | Discovered new exit (range 4) 2398 | -8/Materials | Build established: Gunner 2596 | -8/Materials | Identified exit to Garrison 2596 | -8/Materials | Entered Garrison 2680 | -8/Garrison | Triggered checkpoint 2760 | -8/Garrison | Triggered checkpoint 2773 | -8/Garrison | Triggered checkpoint 2863 | -8/Garrison | Discovered new exit (range 12) 2948 | -8/Garrison | Triggered checkpoint 2994 | -8/Garrison | Triggered checkpoint 3096 | -8/Garrison | Triggered checkpoint 3241 | -8/Garrison | Discovered new exit (range 12) 3268 | -8/Garrison | Triggered checkpoint 3407 | -8/Garrison | Phase Generator disabled 3508 | -8/Garrison | Installed Relay Interface Framework 3642 | -8/Garrison | Triggered checkpoint 3735 | -8/Garrison | Build established: Commander-Gunner 3740 | -8/Garrison | Discovered new exit (range 12) 3935 | -8/Garrison | Expanded RIF knowledge: Patrol Navigation 4489 | -8/Garrison | Entered Materials 4489 | -8/Materials | Accompanied by 6 allies 4506 | -8/Materials | Identified exit to Garrison 4529 | -8/Materials | Entered Garrison 4529 | -8/Garrison | Accompanied by 6 allies 4616 | -8/Garrison | Phase Generator disabled 4711 | -8/Garrison | Triggered checkpoint 4726 | -8/Garrison | Triggered checkpoint 4949 | -8/Garrison | Triggered checkpoint 4951 | -8/Garrison | Build established: Scavenger-Gunner 4965 | -8/Garrison | Lost 3 allies 5048 | -8/Garrison | Discovered new exit (range 63) 5048 | -8/Garrison | Discovered new exit (range 44) 5048 | -8/Garrison | Discovered new exit (range 26) 5093 | -8/Garrison | Triggered checkpoint 5097 | -8/Garrison | Spotted B-75 Beast 5121 | -8/Garrison | Allies destroyed B-75 Beast 5161 | -8/Garrison | Expanded RIF knowledge: Hotswap 5354 | -8/Garrison | Entered Factory 5354 | -7/Factory | Accompanied by 5 allies 5354 | -7/Factory | Evolved 2 slots: Utility x1, Weapon x1 5503 | -7/Factory | Identified exit to Garrison 5517 | -7/Factory | Entered Garrison 5517 | -7/Garrison | Accompanied by 5 allies 5521 | -7/Garrison | Triggered checkpoint 5551 | -7/Garrison | Triggered checkpoint 5645 | -7/Garrison | Triggered checkpoint 5723 | -7/Garrison | Discovered new exit (range 12) 5735 | -7/Garrison | Expanded RIF knowledge: Watcher Feeds 5782 | -7/Garrison | Lost 4 allies 6068 | -7/Garrison | Triggered checkpoint 6076 | -7/Garrison | Build established: Gunner 6135 | -7/Garrison | Discovered new exit (range 10) 6165 | -7/Garrison | Triggered checkpoint 6260 | -7/Garrison | Triggered checkpoint 6333 | -7/Garrison | Discovered new exit (range 10) 6528 | -7/Garrison | Discovered new exit (range 5) 6529 | -7/Garrison | Lost 3 parts (1u2w) 6766 | -7/Garrison | Build established: Scavenger-Gunner 6833 | -7/Garrison | Entered Factory 6833 | -7/Factory | Accompanied by 1 ally 6874 | -7/Factory | Identified exit to Garrison 6915 | -7/Factory | Entered Garrison 6915 | -7/Garrison | Accompanied by 1 ally 6979 | -7/Garrison | Triggered checkpoint 7044 | -7/Garrison | Lost 8 parts (1p2n1u4w) 7105 | -7/Garrison | Triggered checkpoint 7187 | -7/Garrison | Discovered new exit (range 9) 7313 | -7/Garrison | Discovered new exit (range 15) 7351 | -7/Garrison | Triggered checkpoint 7445 | -7/Garrison | Triggered checkpoint 7573 | -7/Garrison | Core integrity fell below 50% 7619 | -7/Garrison | Lost 7 parts (1p2n2u2w) 7679 | -7/Garrison | Triggered checkpoint 7717 | -7/Garrison | Garrison Relay disabled 7917 | -7/Garrison | Phase Generator disabled 7937 | -7/Garrison | Discovered new exit (range 12) 8039 | -7/Garrison | Triggered checkpoint 8355 | -7/Garrison | Triggered checkpoint 8588 | -7/Garrison | Build established: Commander-Gunner 8609 | -7/Garrison | Triggered checkpoint 8741 | -7/Garrison | Expanded RIF knowledge: Threat Obfuscation 8951 | -7/Garrison | Entered Factory 8951 | -6/Factory | Accompanied by 5 allies 8951 | -6/Factory | Evolved 2 slots: Weapon x2 9018 | -6/Factory | Lost 3 allies 9131 | -6/Factory | Discovered new exit (range 15) 9301 | -6/Factory | First assault squad dispatched 9554 | -6/Factory | Build established: Executioner 9701 | -6/Factory | Sucked down chute 9701 | -6/Factory | Entered Waste 9747 | -6/Waste | Warlord forces began an assault 9754 | -6/Waste | Spotted C-40 Crusher 9760 | -6/Waste | Destroyed C-40 Crusher 9765 | -6/Waste | Spotted C-40 Crusher 9770 | -6/Waste | Allies destroyed C-40 Crusher 9795 | -6/Waste | Spotted C-40 Crusher 9799 | -6/Waste | Spotted C-40 Crusher 9799 | -6/Waste | Destroyed C-40 Crusher 9803 | -6/Waste | Allies destroyed C-40 Crusher 9828 | -6/Waste | Spotted C-40 Crusher 9831 | -6/Waste | Spotted C-40 Crusher 9835 | -6/Waste | Destroyed C-40 Crusher 9842 | -6/Waste | Allies destroyed C-40 Crusher 9863 | -6/Waste | Discovered new exit (range 16) 9872 | -6/Waste | Lost 4 allies 9901 | -6/Waste | Entered Factory 9901 | -6/Factory | Accompanied by 14 allies 9945 | -6/Factory | Identified exit to Garrison 9981 | -6/Factory | Entered Garrison 9981 | -6/Garrison | Accompanied by 14 allies 10077 | -6/Garrison | Spotted B-75 Beast 10087 | -6/Garrison | Destroyed B-75 Beast 10124 | -6/Garrison | Build established: Scavenger-Executioner 10159 | -6/Garrison | Lost 3 allies 10195 | -6/Garrison | Discovered new exit (range 48) 10195 | -6/Garrison | Discovered new exit (range 70) 10195 | -6/Garrison | Discovered new exit (range 32) 10207 | -6/Garrison | Triggered checkpoint 10261 | -6/Garrison | Triggered checkpoint 10265 | -6/Garrison | Triggered checkpoint 10323 | -6/Garrison | Lost 5 allies 10335 | -6/Garrison | Destroyed 8 combat bots 10704 | -6/Garrison | Expanded RIF knowledge: Coupler Efficiency 10901 | -6/Garrison | Triggered checkpoint 11202 | -6/Garrison | Entered Factory 11202 | -5/Factory | Accompanied by 2 allies 11202 | -5/Factory | Evolved 2 slots: Utility x2 11608 | -5/Factory | Identified exit to Garrison 11638 | -5/Factory | Entered Garrison 11638 | -5/Garrison | Accompanied by 1 ally 11952 | -5/Garrison | Triggered checkpoint 12024 | -5/Garrison | Spotted B-75 Beast 12066 | -5/Garrison | Triggered checkpoint 12069 | -5/Garrison | Triggered checkpoint 12090 | -5/Garrison | Triggered checkpoint 12098 | -5/Garrison | Triggered checkpoint 12366 | -5/Garrison | Triggered checkpoint 12500 | -5/Garrison | Discovered new exit (range 14) 12736 | -5/Garrison | Destroyed 7 combat bots 12800 | -5/Garrison | Triggered checkpoint 12871 | -5/Garrison | Discovered new exit (range 15) 12924 | -5/Garrison | Expanded RIF knowledge: Program Shield 13406 | -5/Garrison | Discovered new exit (range 14) 13544 | -5/Garrison | Triggered checkpoint 13955 | -5/Garrison | Entered Factory 13955 | -4/Factory | Evolved 2 slots: Propulsion x2 14204 | -4/Factory | Lost 12 parts (1p3n2u6w) 14480 | -4/Factory | Released all parts (8) 14509 | -4/Factory | Lost 11 parts (1p4n1u5w) 14532 | -4/Factory | Core integrity fell below 50% 14541 | -4/Factory | Discovered new exit (range 16) 14548 | -4/Factory | Entered Extension 14597 | -4/Extension | Core integrity fell below 20% 14602 | -4/Extension | Destroyed by Y-64 Sentinel with KE Penetrator Last Messages --------------- 14546_ P-70 Sage resets U-05 Engineer, system corruption cleaned. LOCATION=UNKNOWN GOAL=ESCAPE 14579_ Slug penetrates U-05 Engineer. 14579_ U-05 Engineer destroyed. 14586_ System corrupted: Substantial component data lost. 14588_ Slug penetrates Wall. 14589_ Penetrated by Slug. 14591_ Attempting to rewire N5-25S(g). 14591_ Penetrated by Slug. 14592_ Attempting to rewire N5-25S(g). 14596_ Penetrated by Slug. 14597_ Attempting to rewire N5-25S(g). 14599_ Penetrated by Slug. 14600_ Attempting to rewire N5-25S(g). 14600_ N5-25S(g) rewired. 14600_ Critical hit (Burn: +37). 14600_ Penetrated by Slug. 14601_ Attempting to rewire QG-Y3F(l). 14602_ Penetrated by Slug. Map ----- +----------------------------------------------------+ | | | | | | | | | | | | | | | | | | | | | | | | | | | | | | | | | ??????????????????????????????????????????????? | | ??????????????????????????????????????????????? | | ??????????????????????????????????????????????? | | ??????????????????????????????????????????????? | | ??????????????????????????????????????????????? | | ??????????????????????????????????????????????? | | ??????????????????????????????????????????????? | | ??????????##"##????########???????????????????? | | ??????????#T #????# #???????????????????? | | ????????####/####### @g[ +???????????????????? | | ????????# + ghl #???????????????????? | | ????????# #* Y #???????????????????? | | ?????#### != #Y[ #???#???????????????? | | ?????# |%* + Y #?? #???????????????? | | ?????# #####+##/#######+##### #???????????????? | | ?????# #?# #????# #???????????????? | | ?????# #?# #????# #???????????????? | | ?????# #?# ###### ####????????????? | | ?????# #?# + ?????? | | ?????# #?# #####################????????? | | ?????# #?#########????????????????????????????? | | ?????# #??????????????????????????????????????? | | ?????# #??????????????????????????????????????? | | ?????# #??????????????????????????????????????? | | ?????# #??????????????????????????????????????? | | ?????# #??????????????????????????????????????? | | ?????# #??????????????????????????????????????? | | ?????# #??????????????????????????????????????? | | ?????# #??????????????????????????????????????? | | ?????# #??????????????????????????????????????? | | ?????# #??????????????????????????????????????? | | ?????# #??????????????????????????????????????? | | ?????# #??????????????????????????????????????? | | ?????# #??????????????????????????????????????? | +----------------------------------------------------+ Best States ------------- Heat Dissipation 100 Energy Generation 21 Energy Capacity 325 Matter Stores 300 Matter Capacity 300 Sight Range 16 Terrain Scan Density 10 Armor Coverage 225 Evasion (%) 62 Targeting Accuracy 14 Target Analysis 6 Recoil Reduction 5 Kinecelleration 30 Item Schematics ----------------- None Robot Schematics ------------------ None Fabricated ------------ Nothing Repaired ---------- Nothing Studied --------- Assault Rifle | -9/Materials | Hacked Hvy. Assault Rifle | -9/Materials | Hacked Aluminum Leg | -8/Materials | Hacked Hvy. Assault Cannon | -5/Factory | Hacked Alien Tech Used ----------------- None Achievements -------------- None Challenges ------------ None Game ------ Seed TransmissionLightpackHammer Manual? 0 Play Time 01:34:57 Cumulative 256.9 hours Start 2026.08.06 @ 12:22:41 End 2026.08.06 @ 14:17:33 Sessions 1 Manual Loads 0 Difficulty Rogue Special Mode None Game No. 434 Rogue 271 Adventurer 15 Explorer 148 Win Type - Total 30 Types 29/0/0/1/0/0/0/0/0/0 Lore% 65 Gallery% 64 Achievement% 58 Wizard Run 0 Options --------- Layout 0 ASCII 0 Keyboard 1 Movement Numpad Keybinds 0 Fullscreen 2 Font 18/SmallcapsGlow Map View 76x50 Zoom Use 0% Tactical HUD 1 Map Filters NONE Filters NONE Steam 1 RUN: bbcd06b9-2324-46ca-b1e5-91bf8cde52da